[Event "Julius Baer Generation Cup Prelims 2022"]
[Site "Online"]
[Date "2022.09.14"]
[Round "9.2"]
[White "Wojtaszek, Radoslaw"]
[Black "Gelfand, Boris"]
[Result "1-0"]
[ECO "A50"]
[WhiteElo "2696"]
[BlackElo "2668"]
[Annotator "TA"]
[PlyCount "127"]
[EventDate "2022.09.12"]
[EventType "tourn"]
[EventCountry "NET"]
[SourceTitle "playchess.com"]
[Source "ChessBase"]
[SourceQuality "1"]
[TimeControl "900+10"]

{[%evp 9,127,0,0,0,0,0,0,6,0,10,15,9,10,11,1,0,14,14,14,15,8,-6,-9,-26,-14,-13,0,0,0,0,8,0,0,0,0,0,0,0,6,-8,7,0,19,-7,92,91,94,91,148,169,152,150,211,187,332,350,349,338,377,393,382,266,356,348,415,405,499,398,404,358,370,370,362,337,463,465,508,503,451,427,408,343,549,530,503,351,351,343,885,762,29973,5477,29978,12838,12838,1535,1307,0,2022,400,400,325,391,388,378,341,387,380,364,351,410,407,383,337,1047,1044,1023,1031,903,895]} 1. d4 {[%emt 0:00:00]} Nf6 {[%emt 0:00:00]} 2. c4 {[%emt 0:00:01]} e6 {[%emt 0:00:02]} 3. Bf4 {[%emt 0:00:01]} Bb4+ {[%emt 0:00:57]} 4. Nd2 {[%emt 0:00:04]} c5 {[%emt 0:00:02]} 5. dxc5 {[%emt 0:00:03]} O-O {[%emt 0:00:34]} 6. Ngf3 {[%emt 0:00:10] CPLX 2.7. A50: Queen's Fianchetto Defence (1 d4 Nf6 2 c4 b6).} Bxc5 {[%emt 0:00:03] BESTDEEP} 7. e3 {[%emt 0:00:02] CPLX 2.4} b6 {[%emt 0:00:47]} 8. Be2 {[%emt 0:00:03] BESTDEEP. The position is equal.} Bb7 {[%emt 0:00:01] CPLX 2.2} 9. O-O {[%emt 0:00:03] CPLX 2.4} d5 {[%emt 0:01:55] CPLX 2.4 5 (Nb8-c6) (=1)} 10. a3 {[%emt 0:00:24] CPLX 2.4 6 (Qd1-a4) (=1)} Nc6 {[%emt 0:00:09] [#] CPLX 2.5 1 (Nb8-d7) (=1)} 11. b4 $146 {[%emt 0:00:34] CPLX 2.6 0 (Qd1-b1) (=1)} ({Predecessor:} 11. cxd5 Nxd5 12. Bg3 Rc8 13. Ne4 Be7 14. Rc1 f5 15. Nc3 Nxc3 16. Rxc3 Bf6 17. Rd3 {1-0 (37) Triapishko,A (2506)-Bambino Filho,A (2160) Chess.com INT 2022}) 11... Be7 {[%emt 0:00:47] BESTDEEP} 12. Qb3 {[%emt 0:00:43] CPLX 2.6 1 (h2-h3) (=1)} a5 {[%emt 0:01:31][%cal Ra5b4] CPLX 2.6 14 (Nf6-h5) (=3)} 13. b5 {[%emt 0:00:14] CPLX 2.8} a4 {[%emt 0:00:06] CPLX 2.8} 14. Qb2 {[%emt 0:00:42] BESTDEEP} Na5 {[%emt 0:00:04] EASY} 15. Rfd1 {[%emt 0:00:01] CPLX 2.7 14 (c4xd5) (=2)} Nd7 {[%emt 0:01:46] BESTDEEP} 16. Rac1 {[%emt 0:04:11] CPLX 3.2 17 (c4xd5) (=3)} Bf6 {[%emt 0:00:02] BESTDEEP} 17. Qb1 {[%emt 0:00:18] CPLX 3.1} Nc5 {[%emt 0:01:22] MISS-e6-e5 13 (e6-e5) (=3)} 18. cxd5 {[%emt 0:00:13] CPLX 3.3} exd5 {[%emt 0:00:01] RECAPT} 19. Nd4 {[%emt 0:00:29] Inhibits Nab3. CPLX 3.2} g6 {[%emt 0:00:51] CPLX 3.2 8 (Rf8-e8) (=3)} 20. N2f3 {[%emt 0:00:46][%cal Od4c6] CPLX 2.8 8 (Rc1-c2) (=3)} Re8 {[%emt 0:00:20] BESTDEEP} 21. Rc2 {[%emt 0:00:30] BESTDEEP} Rc8 {[%emt 0:01:23] BESTDEEP} 22. h3 {[%emt 0:00:03] CPLX 2.8 0 (Qb1-b4) (=3)} Bg7 {[%emt 0:00:35] CPLX 2.8 0 (Nc5-e4) (=2)} 23. Qb4 {[%emt 0:01:00] CPLX 2.8 0 (Nd4-c6) (=3)} h6 {[%emt 0:01:19] CPLX 3.0 6 (Bg7-f8) (=2)} 24. Bh2 {[%emt 0:02:20] CPLX 3.0 14 (Nd4-c6) (=3)} Re4 {[%emt 0:00:43] CPLX 2.9 15 (Qd8-f6) (=3)} 25. Qb1 {[%emt 0:00:08] CPLX 3.0 7 (Nf3-d2) (=3)} Nab3 {[%emt 0:00:20] CPLX 2.7 19 (Re4-e8) (=4)} 26. Bf1 {[%emt 0:00:48][%cal Be2f1,Bf1c4,Bc4d5][%mdl 32] CPLX 3.0 26 (Nd4-c6) (=4)} Qf8 {[%emt 0:00:28] RELBLUND 99 (Qd8-e8) (=8)} (26... Qe8 $11 {keeps the balance.}) 27. Nc6 $1 $16 {[%emt 0:00:24] White stays focused until the end. CPLX 3.0=>BLUNDERREACT} Qe8 {[%emt 0:01:04] CPLX 3.2 3 (Rc8xc6) (=8)} 28. Rxd5 {[%emt 0:00:44] White is more active. EASY} Bxc6 {[%emt 0:00:02] CPLX 3.1 57 (Re4-e6) (=10)} ({Better is} 28... Re6) 29. bxc6 {[%emt 0:00:00] RECAPT} Qxc6 {[%emt 0:00:00] RECAPT} 30. Rd6 {[%emt 0:00:19] CPLX 3.3} Qb7 {[%emt 0:00:13] CPLX 3.3 61 (Qc6-e8) (=12)} (30... Qe8 $16 31. Rxb6 Qd8) 31. Bc4 $1 $18 {[%emt 0:00:02] DEEPSTRONG} Kh7 {[%emt 0:01:07] CPLX 3.3 145 (Re4xc4) (=17)} (31... Rxc4 {might work better.} 32. Rxc4 b5) 32. Bd5 {[%emt 0:00:10] EASY} Qe7 {[%emt 0:00:01] EASY} 33. Rxb6 {[%emt 0:00:28] BESTDEEP} Rd8 {[%emt 0:00:02] CPLX 3.7 39 (Qe7-e8) (=17)} 34. Bxe4 {[%emt 0:01:07] EASY} Qxe4 {[%emt 0:00:07] RECAPT} 35. Rb4 {[%emt 0:00:16] CPLX 3.8 116 (Bh2-d6) (=7)} Qd3 {[%emt 0:00:22] Threatens to win with ...Qd1+. CPLX 3.9 90 (Qe4-f5) (=19)} 36. Be5 {[%emt 0:00:07] CPLX 3.6} Bxe5 {[%emt 0:01:03] CPLX 4.1 67 (Bg7-f8) (=20)} 37. Nxe5 {[%emt 0:00:02] RECAPT} Qf5 {[%emt 0:00:01] CPLX 3.9 94 (Qd3-d5) (=22)} 38. Nf3 {[%emt 0:00:31] CPLX 3.9 101 (Qb1-b2) (=9)} Rd6 {[%emt 0:00:28] CPLX 3.5 6 (Rd8-d7) (=22)} 39. Nd4 {[%emt 0:00:53] CPLX 3.5 46 (Rb4-b8) (=10)} Qd7 {[%emt 0:00:01] CPLX 3.8} 40. Qd1 {[%emt 0:00:27] CPLX 3.3} Ne6 {[%emt 0:00:08][%cal Re6d4] CPLX 3.3} 41. Rcc4 {[%emt 0:00:36] CPLX 3.4 25 (Qd1-g4) (=11)} Nbxd4 {[%emt 0:00:11] CPLX 3.5 126 (Nb3-a5) (=23)} 42. exd4 {[%emt 0:00:03] RECAPT} Nf4 {[%emt 0:00:02] CPLX 2.9 43 (Rd6-d5) (=24)} 43. Qg4 {[%emt 0:00:34] CPLX 3.5} Ne6 {[%emt 0:00:30] CPLX 3.8 0 (Nf4-d5) (=23)} 44. Rb8 {[%emt 0:00:38] CPLX 3.2 24 (Rb4xa4) (=10)} Qa7 {[%emt 0:00:23] CPLX 4.2 0 (Rd6-d5) (=23)} 45. Rcc8 {[%emt 0:00:21] CPLX 4.4 65 (Rb8-c8) (=12)} Rxd4 $2 {[%emt 0:00:03] MISS-Qa7xd4 206 (Qa7xd4) (=27)} (45... Qxd4 46. Rh8+ Kg7 47. Rbg8+ Kf6 48. Qf3+ Qf4 49. Qxf4+ Nxf4) 46. Qf3 {[%emt 0:00:35] Threatening mate with Rh8+. CPLX 4.6} Rf4 {[%emt 0:00:02] DEEPSTRONG} 47. Rh8+ {[%emt 0:00:05] CPLX 4.9 152 (Rb8-b7) (=15)} Kg7 {[%emt 0:00:01] LEGAL} 48. Qc3+ {[%emt 0:00:04] CPLX 5.0 8 (Qf3-g3) (=15)} Nd4 $2 {[%emt 0:00:21] EVAL 400 (Qa7-d4) (=34)} (48... Qd4 49. Rhc8 Kh7 50. Qxd4 Rxd4) 49. Qe3 {[%emt 0:00:15] Intending Qe5+ and mate. EVAL 123 (Rh8-d8) (=17)} Qc7 {[%emt 0:00:20] Prevents Qe5+. RELBLUND 400 (Nd4-f3) (=43)} 50. Rbc8 {[%emt 0:00:13] BEVAL 400 (Rh8-c8) (=26)} (50. Rhc8 $142 Qd6 51. Rd8 Qc7 52. Rbc8 Qxd8 53. Rxd8 Ne6 54. Qe5+ Rf6 55. Ra8) 50... Qd6 {[%emt 0:00:07] RELBLUND 400 (Nd4-f5) (=50)} 51. Rcd8 {[%emt 0:00:25] BEVAL 400 (Rh8-d8) (=34)} (51. Rhd8 $142 Qe6 52. Rg8+ Kh7 53. Rh8+ Kg7 54. Rcg8+ Kf6 55. Qxf4+ Nf5 56. g4) 51... Qc7 {[%emt 0:00:36] BEVAL} 52. Rhg8+ {[%emt 0:00:10] BEVAL 400 (Rd8xd4) (=42)} (52. Rxd4 $142 Kxh8 53. Qxf4) 52... Kh7 {[%emt 0:00:02] BEVAL} 53. Rh8+ {[%emt 0:00:10] CPLX 4.8 400 (Qe3-e8) (=49)} (53. Qe8 $142 h5 54. Rh8+ Kg7 {[#]} 55. Rh7+ $3 {[%mdl 512]} Kf6 56. Rxd4 $1 {[%mdl 512]} Rxd4 57. Qh8+ Ke7 58. Qxd4) 53... Kg7 {[%emt 0:00:01] BEVAL} 54. Rhe8 {[%emt 0:00:09] MISS-Rd8xd4 400 (Rd8xd4) (=56)} (54. Rxd4 $142 Kxh8 55. Qxf4) 54... Ne6 {[%emt 0:00:22] CPLX 4.6} 55. Rg8+ {[%emt 0:00:11] CPLX 4.9 75 (Rd8-c8) (=57)} Kh7 {[%emt 0:00:02] CPLX 4.5 66 (Kg7-f6) (=47)} 56. Rh8+ {[%emt 0:00:02] CPLX 4.9} Kg7 {[%emt 0:00:01] LEGAL} 57. Rdg8+ {[%emt 0:00:19] CPLX 4.9} Kf6 {[%emt 0:00:02] LEGAL} 58. Rc8 {[%emt 0:00:01] BESTDEEP} ({Don't take} 58. g3 Rf5 59. Rc8 Qd7 60. Qc3+ Ke7 $18) 58... Qd6 {[%emt 0:00:07] BESTDEEP} 59. Qc3+ {[%emt 0:00:05] CPLX 4.3} ({Don't play} 59. Rxh6 Rd4 60. Qg3 Qxg3 61. fxg3 Rd3 $18) 59... Kg5 {[%emt 0:00:21] CPLX 3.6 59 (Rf4-d4) (=44)} 60. Qg3+ {[%emt 0:00:10] CPLX 5.2} Kf6 {[%emt 0:00:03] BESTDEEP} 61. Kh2 {[%emt 0:00:17] CPLX 3.9 46 (Rh8xh6) (=51)} Nd4 $2 {[%emt 0:00:15] BEVAL 400 (h6-h5) (=50)} (61... h5 62. Rc4 Rd4 63. Qxd6 Rxd6 64. Rxa4 Rd2) 62. Rhd8 {[%emt 0:00:06] BEVAL. White is clearly winning.} Qe5 {[%emt 0:00:01] BEVAL} 63. Re8 {[%emt 0:00:33] BEVAL} Ne6 {[%emt 0:00:37] [#] EVAL 0 (Nd4-f5) (=48)} 64. Rxe6+ $1 {[%emt 0:00:05][%mdl 512] Weighted Error Value: White=0.38/Black=0.52} 1-0

[Event "Julius Baer Generation Cup Prelims 2022"]
[Site "Online"]
[Date "2022.09.14"]
[Round "11.1"]
[White "Wojtaszek, Radoslaw"]
[Black "Giri, Anish"]
[Result "0-1"]
[ECO "D85"]
[WhiteElo "2696"]
[BlackElo "2764"]
[Annotator "TA"]
[PlyCount "144"]
[EventDate "2022.09.12"]
[EventType "tourn"]
[EventCountry "NET"]
[SourceTitle "playchess.com"]
[Source "ChessBase"]
[SourceQuality "1"]
[TimeControl "900+10"]

{[%evp 18,143,0,0,0,0,0,0,0,0,0,0,23,20,6,11,4,-11,0,0,0,-32,0,-45,-5,-8,-6,-36,0,-27,-33,-75,-72,-61,-67,-56,-47,-52,-48,-54,-33,-57,-20,-30,-21,-33,-9,-14,0,-9,-10,-56,-56,-56,-56,-56,-56,-56,-56,-60,-56,-56,-56,-56,-52,-52,-52,-52,0,-4,-5,-5,0,-8,-6,-18,-8,-68,-68,-68,-40,-40,-6,-40,-40,-40,-40,-40,-40,-40,-40,-40,-40,-67,-40,-67,-40,-40,-40,-67,-67,-67,-67,-67,-67,-67,-67,-67,-67,-67,-67,-67,-67,-75,-75,-75,-75,-75,-75,-75,-40,-75,-75,-75,-8,-8,-83,-29999]} 1. d4 {[%emt 0:00:00]} Nf6 {[%emt 0:00:00]} 2. c4 {[%emt 0:00:01]} g6 {[%emt 0:00:01]} 3. Nc3 {[%emt 0:00:02]} d5 {[%emt 0:00:12]} 4. cxd5 {[%emt 0:00:00]} Nxd5 {[%emt 0:00:01]} 5. e4 {[%emt 0:00:00]} Nxc3 {[%emt 0:00:01]} 6. bxc3 {[%emt 0:00:00][%cal Bb2c3,Bc3d4,Bd4d5][%mdl 32]} Bg7 {[%emt 0:00:01]} 7. Nf3 {[%emt 0:00:01]} c5 {[%emt 0:00:01]} 8. h3 {[%emt 0:00:01]} O-O {[%emt 0:00:16]} 9. Be2 {[%emt 0:00:10]} Nc6 {[%emt 0:00:06]} 10. Be3 {[%emt 0:00:14] CPLX 2.4} cxd4 {[%emt 0:00:03] CPLX 2.4. D85: Exchange Grünfeld: Unusual White 7th moves and lines with 7 Nf3.} 11. cxd4 {[%emt 0:00:01] RECAPT} Qa5+ {[%emt 0:00:03] CPLX 2.4} 12. Bd2 {[%emt 0:00:06] CPLX 3.3} Qa3 {[%emt 0:00:03] CPLX 3.1. The position is equal.} 13. d5 {[%emt 0:00:17] BESTDEEP} Ne5 {[%emt 0:00:02] BESTDEEP} 14. Rb1 {[%emt 0:02:02] BESTDEEP} Nxf3+ {[%emt 0:04:29] CPLX 2.8} 15. Bxf3 {[%emt 0:00:04] RECAPT} Qxa2 {[%emt 0:00:01] CPLX 2.4} 16. O-O {[%emt 0:00:30] CPLX 2.4} a5 {[%emt 0:00:09] [#] CPLX 2.5} 17. Re1 $146 {[%emt 0:01:26] CPLX 2.5 15 (Qd1-c1) (=2)} ({Predecessor:} 17. Bf4 a4 18. e5 Qc4 19. Qd2 {½-½ (76) Carlsen,M (2862)-Nepomniachtchi,I (2784) chess24.com INT 2020}) 17... a4 {[%emt 0:00:33] CPLX 2.6 11 (Bg7-e5) (=1)} (17... Be5 {is interesting.} 18. Bh6 Rd8 19. Be3 b5) 18. Bb4 {[%emt 0:00:50] EASY} Re8 {[%emt 0:01:46] CPLX 2.9} 19. Qd3 {[%emt 0:04:30] CPLX 2.9 32 (Qd1-c1) (=5)} b6 {[%emt 0:01:05][%cal Ob6b5] CPLX 2.9 32 (Bc8-d7) (=4)} 20. e5 {[%emt 0:02:16] [#] Threatens to win with Qc3. CPLX 2.8 45 (Re1-d1) (=8)} Bf5 {[%emt 0:00:17] CPLX 2.9} 21. Be4 {[%emt 0:00:04] EASY} Bxe4 {[%emt 0:00:31] BESTDEEP} 22. Qxe4 {[%emt 0:01:10] RECAPT} Rac8 {[%emt 0:01:19][%cal Ba8c8,Bc8c4,Bc4e4][%mdl 32] CPLX 2.8 36 (Ra8-d8) (=6)} (22... Rad8 $5 {[%cal Ra2d5]} 23. Red1 b5 $17) 23. Ra1 {[%emt 0:00:17] CPLX 2.8 27 (e5-e6) (=9)} Qb3 {[%emt 0:00:52] And now ...Rc4 would win. CPLX 3.1 0 (Qa2-c2) (=6)} 24. Re3 {[%emt 0:01:57] CPLX 2.6 42 (Ra1-b1) (=11)} Rc4 {[%emt 0:02:31] EASY} 25. Rxb3 {[%emt 0:00:19] CPLX 3.6} Rxe4 {[%emt 0:00:01] EASY} 26. Rxa4 {[%emt 0:00:02] CPLX 2.4} Bxe5 {[%emt 0:00:08] White must now prevent ...Bd6. CPLX 2.3 9 (Re4xe5) (=5)} 27. Ra7 {[%emt 0:00:09] CPLX 2.4} Bd4 {[%emt 0:00:42] BESTDEEP} 28. g3 {[%emt 0:00:52] CPLX 2.0 6 (Kg1-f1) (=9)} Re2 {[%emt 0:00:05] CPLX 2.0 21 (Kg8-f8) (=6)} 29. Rf3 {[%emt 0:00:06] CPLX 2.2} f5 {[%emt 0:00:28] CPLX 2.1 37 (Bd4-c5) (=7)} 30. Kf1 {[%emt 0:01:00] CPLX 2.2 10 (Kg1-g2) (=8)} Re4 {[%emt 0:00:36][%cal Od4f2] BESTDEEP} 31. Ba3 {[%emt 0:00:26] BESTDEEP} h5 {[%emt 0:01:12] CPLX 2.0 24 (Bd4-c5) (=8)} 32. h4 {[%emt 0:00:02] CPLX 2.0 5 (Rf3-d3) (=8)} Bf6 {[%emt 0:01:09] CPLX 2.0 14 (Kg8-f8) (=8)} 33. Rb7 {[%emt 0:00:04] CPLX 2.1 9 (Rf3-b3) (=8)} Rd4 {[%emt 0:00:08] BESTDEEP} 34. Rxb6 {[%emt 0:00:38] CPLX 2.1 46 (Rb7-d7) (=9)} (34. Rd7 $11) 34... Rxd5 $15 {[%emt 0:00:03] CPLX 2.0} 35. Bb2 {[%emt 0:00:06] BESTDEEP} Bxb2 {[%emt 0:00:46] CPLX 2.0} 36. Rxb2 {[%emt 0:00:00][%mdl 4096] Endgame KRR-KRR. RECAPT} Kf7 {[%emt 0:00:05] CPLX 2.0} 37. Rb7 {[%emt 0:00:05] CPLX 2.0 0 (Rf3-b3) (=8)} Re5 {[%emt 0:00:06] CPLX 2.0 0 (Rd5-d2) (=7)} 38. Rbb3 {[%emt 0:00:26] CPLX 2.0 4 (Kf1-g2) (=8)} Kf6 {[%emt 0:01:01] CPLX 2.0 4 (Re8-a8) (=6)} 39. Rfe3 {[%emt 0:00:17] BESTDEEP} Rxe3 {[%emt 0:00:01] CPLX 2.0} 40. Rxe3 {[%emt 0:00:00] KR-KR. RECAPT} e5 {[%emt 0:00:01] CPLX 2.0 4 (Re8-a8) (=6)} 41. Kg2 {[%emt 0:00:11] CPLX 2.0 0 (Re3-a3) (=8)} Re6 {[%emt 0:00:02] CPLX 2.0 0 (Kf6-f7) (=6)} 42. Ra3 {[%emt 0:00:03] CPLX 2.0} g5 {[%emt 0:00:10] CPLX 2.0 52 (Re6-d6) (=7)} (42... Rd6 $15 {is superior.}) 43. hxg5+ $11 {[%emt 0:00:02] CPLX 2.0} Kxg5 {[%emt 0:00:00] RECAPT} 44. Ra8 {[%emt 0:00:11] CPLX 2.0} Rg6 {[%emt 0:00:22] CPLX 2.0 5 (f5-f4) (=7)} 45. Ra4 {[%emt 0:00:28] CPLX 2.0 8 (Ra8-e8) (=7)} e4 {[%emt 0:00:05] CPLX 2.0 2 (f5-f4) (=7)} 46. Ra5 {[%emt 0:00:53] CPLX 2.0 12 (f2-f3) (=7)} h4 {[%emt 0:00:12] CPLX 2.0 10 (Rg6-d6) (=7)} 47. Ra8 {[%emt 0:00:28] RELBLUND 60 (f2-f3) (=8)} (47. f3 $11) 47... hxg3 $15 {[%emt 0:00:24] EASY} 48. Kxg3 {[%emt 0:00:03] RECAPT} Kf6+ {[%emt 0:00:19] CPLX 2.0 28 (f5-f4) (=7)} 49. Kf4 {[%emt 0:00:10] EASY} Rg4+ {[%emt 0:00:12] CPLX 2.0} 50. Ke3 {[%emt 0:00:01] LEGAL} Rh4 {[%emt 0:00:19] CPLX 2.0} 51. Rf8+ {[%emt 0:00:02] CPLX 2.0 0 (Ra8-d8) (=8)} Ke6 {[%emt 0:00:13] CPLX 2.0} 52. Re8+ {[%emt 0:00:03] CPLX 2.0 0 (Ke3-e2) (=7)} Kf7 {[%emt 0:00:06] CPLX 2.0} 53. Ra8 {[%emt 0:00:07] CPLX 2.0 0 (Re8-b8) (=7)} Rh3+ {[%emt 0:00:05] CPLX 2.0} 54. Ke2 {[%emt 0:00:08] EASY} Kf6 {[%emt 0:00:03] CPLX 2.0} 55. Kf1 {[%emt 0:00:17] CPLX 2.0 27 (Ra8-e8) (=8)} Rb3 {[%emt 0:00:05] CPLX 2.0 27 (f5-f4) (=7)} 56. Kg2 {[%emt 0:00:04] CPLX 2.0 27 (Ra8-e8) (=8)} Ke5 {[%emt 0:00:09] CPLX 2.0 27 (f5-f4) (=7)} 57. Re8+ {[%emt 0:00:08] BESTDEEP} Kf4 {[%emt 0:00:00] CPLX 2.0} 58. Re7 {[%emt 0:00:05] CPLX 2.0 27 (Re8-a8) (=8)} Rb2 {[%emt 0:00:04] BESTDEEP} 59. Re8 {[%emt 0:00:04] BESTDEEP} Ra2 {[%emt 0:00:05] BESTDEEP} 60. Re7 {[%emt 0:00:07] BESTDEEP} Re2 {[%emt 0:00:03] ( -> ...e3). CPLX 2.0 0 (Ra2-d2) (=7)} 61. Ra7 {[%emt 0:00:12]} Rb2 {[%emt 0:00:17]} 62. Re7 {[%emt 0:00:30]} Rb8 {[%emt 0:00:04]} 63. Ra7 {[%emt 0:00:05]} Rg8+ {[%emt 0:00:13]} 64. Kf1 {[%emt 0:00:01]} Kg4 {[%emt 0:00:02]} 65. Ra4 {[%emt 0:00:32]} Rb8 {[%emt 0:00:23]} 66. Kg2 {[%emt 0:00:22]} Rb2 {[%emt 0:00:21]} 67. Rc4 {[%emt 0:00:08]} Kg5 {[%emt 0:00:04]} 68. Kf1 {[%emt 0:00:07]} Kf4 {[%emt 0:00:18] Black is more active.} 69. Rc5 {[%emt 0:00:12]} Kg4 {[%emt 0:00:20] aiming for ...f4.} 70. Rc4 {[%emt 0:00:07]} f4 {[%emt 0:00:29]} ({Black should play} 70... Rb3 $17 {Strongly threatening ...Kf3.} 71. Kg2 Rb2) 71. Rxe4 $11 {[%emt 0:00:21]} Kf3 $1 {[%emt 0:00:01][%csl LRe4,LRf2]} 72. Ra4 $2 {[%emt 0:00:01][%mdl 8192] [#]} (72. Re6 $17) 72... Rb1# {[%emt 0:00:01] Weighted Error Value: White=0.10 (very precise) /Black=0.07 (flawless)} 0-1